bitfinex-derivatives/quotes_SOLF0:USTF0_20250808
["timestamp","ask_amount","ask_price","bid_price","bid_amount"]
[1754628937197,2.07430964,174.66,174.59,3.28]
[1754628937398,2.07430964,174.66,174.61,2.07430964]
[1754628937604,10.94870964,174.66,174.62,3.28]
[1754628938104,8.8744,174.66,174.64,5.7249]
[1754628938404,2.07430964,174.65,174.64,5.7249]
[1754628938807,8.8744,174.66,174.61,2.07430964]
[1754628939105,2.07430964,174.65,174.61,2.07430964]
[1754628939305,2.07430964,174.65,174.6,2.07430964]
[1754628939502,2.07430964,174.65,174.64,3.28]
[1754628939700,5.22430964,174.65,174.64,3.28]
[1754628940406,3.15,174.66,174.64,3.28]
[1754628940609,2.07430964,174.65,174.64,3.28]
[1754628942007,2.07430964,174.65,174.64,9.005]
[1754628948108,2.07430964,174.65,174.58,384.56]
[1754628948312,5.22430964,174.59,174.49,3.28]
[1754628948617,2.07430964,174.57,174.54,3.28]
[1754628949719,2.07430964,174.57,174.56,3.28]
[1754628950617,8.8771,174.58,174.56,3.28]
[1754628951819,3.15,174.58,174.56,9.0075]
[1754628952020,3.15,174.58,174.57,3.28]
[1754628952818,8.97584774,174.59,174.57,3.28]
[1754628953020,12.12584774,174.59,174.57,3.28]
[1754628954219,12.12584774,174.59,174.57,9.0072]
[1754628954518,12.12584774,174.59,174.58,3.28]
[1754628955721,3.15,174.57,174.52,3.28]
[1754628956222,8.8774,174.57,174.51,3.24914774]
[1754628956422,3.15,174.56,174.52,3.28]
[1754628956823,3.15,174.56,174.54,5.728]
[1754628957024,3.15,174.56,174.55,3.28]
[1754628957923,3.15,174.56,174.55,9.0079]
[1754628958524,8.8771,174.58,174.55,9.0079]
[1754628958825,3.15,174.57,174.56,3.28]
[1754628961826,8.9671,174.58,174.56,5.7276]
[1754628962128,8.9671,174.58,174.57,3.02]
[1754628964831,5.7273,174.57,174.55,8.7478]
[1754628965126,3.24,174.56,174.55,5.7278]
[1754628965322,3.24,174.56,174.54,5.7281]
[1754628965528,3.24,174.56,174.55,3.02]
[1754628966029,3.24,174.56,174.55,8.7479]
[1754628966621,8.9673,174.57,174.55,5.7279]
[1754628966826,8.9673,174.57,174.56,3.02]
[1754628967327,3.24,174.57,174.56,3.02]
[1754628968229,5.727,174.58,174.56,3.02]
[1754628968430,8.967,174.58,174.56,3.02]
[1754628969229,3.24,174.58,174.56,5.7275]
[1754628969429,3.24,174.58,174.57,3.02]
[1754628970634,5.31957079,174.58,174.57,3.02]
[1754628971233,3.24,174.57,174.5,104.12]
[1754628971534,3.24,174.57,174.44,33.0]
[1754628971535,2.07957079,174.52,174.51,3.02]
[1754628972132,2.07957079,174.53,174.51,8.749]
[1754628972333,2.07957079,174.53,174.52,3.02]
[1754628972832,5.31957079,174.53,174.52,3.02]
[1754628973328,2.07957079,174.53,174.51,3.02]
[1754628973529,5.31957079,174.52,174.51,3.02]
[1754628975133,8.9683,174.54,174.51,3.02]
[1754628975334,2.07957079,174.52,174.51,3.02]
[1754628975835,5.31957079,174.52,174.51,3.02]
[1754628978437,5.31957079,174.52,174.51,8.7492]
[1754628979239,5.31957079,174.52,174.51,3.02]
[1754628979836,8.9684,174.54,174.51,3.02]
[1754628980037,5.31957079,174.53,174.51,3.02]
[1754628980237,5.31957079,174.53,174.51,8.749]
[1754628980437,5.7286,174.53,174.52,3.02]
[1754628980736,7.80817079,174.53,174.52,3.02]
[1754628980936,11.04817079,174.53,174.52,3.02]
[1754628981139,5.31957079,174.53,174.52,3.02]
[1754628981736,11.04817079,174.53,174.52,3.02]
[1754628983843,5.31957079,174.53,174.52,3.02]
[1754628985945,11.04817079,174.53,174.52,3.02]
[1754628987546,5.31957079,174.53,174.52,3.02]
[1754628990445,5.31957079,174.53,174.52,8.7489]
[1754628990639,5.31957079,174.53,174.52,3.02]
[1754628994746,5.31957079,174.53,174.52,8.7489]
[1754628997947,5.31957079,174.53,174.52,3.02]
[1754629002147,5.31957079,174.53,174.52,8.7489]
[1754629006557,5.31957079,174.53,174.52,3.02]
[1754629008857,5.31957079,174.53,174.52,8.7489]
[1754629009359,5.31957079,174.53,174.52,3.02]
[1754629010758,2.07957079,174.53,174.52,3.02]
[1754629011557,2.07957079,174.53,174.52,8.7489]
[1754629014061,2.07957079,174.53,174.52,3.02]
[1754629014258,5.38957079,174.53,174.52,3.02]
[1754629014453,3.31,174.53,174.52,3.02]
[1754629014756,5.38957079,174.53,174.52,3.02]
[1754629017563,2.07957079,174.53,174.52,3.02]
[1754629017862,5.38957079,174.53,174.52,3.02]
[1754629019364,11.11817079,174.53,174.52,3.02]
[1754629020664,5.38957079,174.53,174.52,3.02]
[1754629021263,11.11817079,174.53,174.52,3.02]
[1754629024065,5.38957079,174.53,174.52,3.02]
[1754629024462,3.22,174.6,174.52,3.02]
[1754629024660,5.727,174.58,174.55,3.28]
[1754629024963,8.947,174.58,174.55,3.28]
[1754629025267,3.22,174.56,174.53,3.28]
[1754629025470,5.29957079,174.54,174.48,2.07957079]
[1754629025662,2.07957079,174.51,174.46,2.07957079]
[1754629025861,2.07957079,174.51,174.49,5.7296]
[1754629026062,2.07957079,174.51,174.5,3.28]
[1754629026665,2.07957079,174.51,174.5,9.0096]
[1754629027160,2.07957079,174.51,174.46,2.07957079]
[1754629027365,5.29957079,174.49,174.47,3.28]
[1754629027761,5.29957079,174.49,174.47,5.7302]
[1754629028066,2.07957079,174.49,174.48,3.28]
[1754629028866,2.07957079,174.49,174.48,9.0102]
[1754629029067,5.29957079,174.49,174.48,3.28]
[1754629029869,2.07957079,174.49,174.48,3.28]
[1754629030969,2.07957079,174.49,174.48,9.0102]
[1754629034273,2.07957079,174.51,174.5,9.0093]
[1754629035070,3.22,174.54,174.5,3.28]
[1754629035274,2.07957079,174.54,174.5,2.07957079]
[1754629035474,2.07957079,174.54,174.51,3.28]
[1754629035773,2.07957079,174.54,174.53,3.28]
[1754629035975,5.29957079,174.54,174.53,3.28]
[1754629037077,5.29957079,174.54,174.53,9.0086]
[1754629037378,5.29957079,174.54,174.53,3.28]
[1754629042179,5.29957079,174.54,174.49,2.07957079]
[1754629042380,3.22,174.53,174.49,2.07957079]
[1754629042676,2.07957079,174.52,174.5,5.7295]
[1754629043383,3.22,174.51,174.5,5.7295]
[1754629044078,2.07957079,174.52,174.51,5.7292]
[1754629044275,2.07957079,174.52,174.51,9.0092]
[1754629044671,5.29957079,174.52,174.51,9.0092]
[1754629050386,3.22,174.52,174.51,9.0092]
[1754629052184,3.22,174.52,174.5,5.7295]
[1754629052388,3.22,174.52,174.5,3.17]
[1754629052689,3.2,174.51,174.47,3.17]
[1754629052888,3.2,174.51,174.5,8.8996]
[1754629055790,3.2,174.51,174.5,5.7296]
[1754629056088,3.2,174.51,174.5,8.8996]
[1754629056691,5.27957079,174.52,174.51,8.8992]
[1754629058086,5.27957079,174.52,174.51,3.17]
[1754629058689,11.00847079,174.52,174.51,3.17]
[1754629059089,3.2,174.51,174.5,3.17]
[1754629059892,8.9292,174.51,174.5,3.17]
[1754629061392,3.2,174.49,174.48,3.17]
[1754629061598,5.27957079,174.49,174.48,3.17]
[1754629061899,3.2,174.48,174.47,3.17]
[1754629062899,3.2,174.48,174.46,3.17]
[1754629063098,5.27957079,174.47,174.46,3.17]
[1754629063998,5.27957079,174.47,174.46,8.9009]
[1754629065805,5.27957079,174.47,174.46,3.17]
[1754629067504,11.01007079,174.47,174.46,3.17]
[1754629068206,11.01007079,174.47,174.45,5.7311]
[1754629068405,3.2,174.46,174.45,8.9011]
[1754629070910,5.27957079,174.47,174.46,8.9009]
[1754629072012,5.27957079,174.47,174.46,5.7309]
[1754629072907,5.27957079,174.47,174.46,8.9009]
[1754629075813,11.01007079,174.47,174.45,8.9012]
[1754629076015,3.2,174.46,174.45,5.7312]
[1754629076316,3.2,174.46,174.45,8.9012]
[1754629077820,3.2,174.46,174.44,5.7313]
[1754629078018,3.2,174.46,174.45,3.17]
[1754629078518,3.2,174.46,174.45,8.9012]
[1754629078814,2.07957079,174.47,174.45,8.9012]
[1754629079010,5.27957079,174.47,174.46,3.17]
[1754629079619,5.27957079,174.47,174.45,3.17]
[1754629079820,5.27957079,174.46,174.45,3.17]
[1754629080622,3.2,174.46,174.45,8.9012]
[1754629080820,5.27957079,174.46,174.45,8.9012]
[1754629085325,5.27957079,174.46,174.45,3.17]
[1754629086426,5.27957079,174.46,174.45,8.9012]
[1754629088430,5.27957079,174.46,174.45,3.17]
[1754629090935,3.23,174.45,174.44,3.24]
[1754629092236,3.23,174.45,174.44,8.9715]
[1754629092836,3.23,174.45,174.44,3.24]
[1754629093436,5.30957079,174.45,174.44,3.24]
[1754629098248,5.30957079,174.45,174.44,8.9715]
[1754629098545,2.07957079,174.45,174.44,8.9715]
[1754629099245,5.30957079,174.45,174.44,8.9715]
[1754629099647,5.30957079,174.45,174.44,3.24]
[1754629102248,5.30957079,174.45,174.44,8.9715]
[1754629103550,2.07957079,174.45,174.44,8.9715]
[1754629104052,5.30957079,174.45,174.44,8.9715]
[1754629105752,3.23,174.45,174.44,8.9715]
[1754629105947,5.30957079,174.45,174.44,8.9715]
[1754629107450,5.30957079,174.45,174.44,3.24]
[1754629108150,3.23,174.44,174.43,3.24]
[1754629108649,3.23,174.44,174.42,3.24]
[1754629108842,2.07957079,174.43,174.42,3.24]
[1754629109042,5.30957079,174.43,174.42,3.24]
[1754629109748,2.07957079,174.43,174.41,5.7323]
[1754629109949,5.30957079,174.43,174.37,5.31957079]
[1754629110852,5.30957079,174.43,174.41,5.7323]
[1754629111049,3.23,174.42,174.41,5.7323]
[1754629111550,3.23,174.42,174.41,9.0323]
[1754629113050,2.07957079,174.43,174.42,5.7322]
[1754629113255,5.17957079,174.43,174.42,9.0322]
[1754629122760,3.1,174.43,174.42,9.0322]
[1754629122961,5.17957079,174.43,174.42,9.0322]
[1754629123860,2.07957079,174.43,174.42,9.0322]
[1754629124557,3.1,174.47,174.42,5.37957079]
[1754629124858,5.17957079,174.47,174.44,3.3]
[1754629125361,5.17957079,174.47,174.46,5.7309]
[1754629125564,5.17957079,174.47,174.46,9.0309]
[1754629128863,5.17957079,174.47,174.46,3.3]
[1754629129465,2.07957079,174.47,174.45,5.731]
[1754629129663,3.1,174.46,174.45,9.031]
[1754629135471,3.1,174.48,174.43,2.07957079]
[1754629135770,5.17957079,174.48,174.47,3.3]
[1754629135969,5.17957079,174.48,174.47,9.0305]
[1754629136769,3.1,174.48,174.47,9.0305]
[1754629137065,2.07957079,174.5,174.49,3.3]
[1754629137270,3.1,174.51,174.49,3.3]
[1754629137472,3.1,174.51,174.5,9.0295]
[1754629139873,3.1,174.52,174.51,9.0292]
[1754629141469,3.1,174.51,174.42,3.3]
[1754629141671,3.08,174.45,174.43,3.32]
[1754629141866,5.15957079,174.46,174.43,3.32]
[1754629142074,3.08,174.46,174.43,5.39957079]
[1754629142275,3.08,174.46,174.44,3.32]
[1754629143176,3.08,174.46,174.45,5.7312]
[1754629143377,3.08,174.46,174.45,9.0512]
[1754629149382,5.15957079,174.49,174.46,3.32]
[1754629149779,2.07957079,174.49,174.48,5.7302]
[1754629150075,2.07957079,174.51,174.49,3.32]
[1754629150478,2.07957079,174.53,174.49,3.32]
[1754629150676,3.08,174.51,174.49,2.07957079]
[1754629150878,3.08,174.51,174.5,3.32]
[1754629152183,3.08,174.51,174.5,9.0494]
[1754629155985,5.15957079,174.51,174.5,3.32]
[1754629156480,5.15957079,174.51,174.47,2.07957079]
[1754629156681,3.08,174.5,174.49,9.0499]
[1754629160788,3.08,174.5,174.49,5.7299]
[1754629161383,3.08,174.5,174.48,5.7302]
[1754629161587,5.15957079,174.49,174.48,5.7302]
[1754629161983,5.15957079,174.49,174.48,9.0502]
[1754629163389,3.08,174.49,174.48,9.0502]
[1754629165789,3.08,174.49,174.48,5.7302]
[1754629166086,3.08,174.49,174.48,9.0502]
[1754629170790,3.08,174.49,174.48,5.7302]
[1754629172495,3.08,174.49,174.48,8.7602]
[1754629176101,2.07957079,174.5,174.49,5.7299]
[1754629176396,2.07957079,174.5,174.49,8.7599]
[1754629176397,5.32957079,174.5,174.49,8.7599]
[1754629179501,5.32957079,174.5,174.49,5.7299]
[1754629179704,5.32957079,174.5,174.49,8.7599]
[1754629180703,5.32957079,174.5,174.49,5.7299]
[1754629180903,3.25,174.49,174.47,3.03]
[1754629181100,2.07957079,174.48,174.47,3.03]
[1754629181305,5.32957079,174.48,174.47,3.03]
[1754629182108,3.25,174.47,174.41,2.07957079]
[1754629182308,5.32957079,174.45,174.42,3.03]
[1754629183110,5.32957079,174.45,174.44,5.7316]
[1754629183310,3.25,174.56,174.45,3.03]
[1754629183512,2.07957079,174.46,174.45,3.03]
[1754629183710,2.07957079,174.46,174.45,8.7612]
[1754629184512,5.32957079,174.46,174.45,8.7612]
[1754629185411,5.32957079,174.46,174.44,5.7314]
[1754629185611,5.32957079,174.45,174.44,8.7614]
[1754629191022,5.32957079,174.45,174.36,44.4678]
[1754629191023,3.25,174.44,174.42,3.03]
[1754629191221,5.32957079,174.43,174.42,3.03]
[1754629191522,3.25,174.42,174.38,3.03]
[1754629191721,5.32957079,174.41,174.38,3.03]
[1754629192224,5.32957079,174.41,174.4,8.7628]
[1754629197826,3.25,174.41,174.4,8.7628]
[1754629198026,5.32957079,174.41,174.4,8.7628]
[1754629200125,2.07957079,174.41,174.4,8.7628]
[1754629201227,5.7317,174.44,174.41,5.7325]
[1754629201428,3.25,174.41,174.37,2.07957079]
[1754629201628,2.07957079,174.39,174.35,2.07957079]
[1754629201821,5.16957079,174.39,174.35,2.07957079]
[1754629202024,5.16957079,174.39,174.36,3.33]
[1754629202224,2.07957079,174.39,174.36,3.33]
[1754629203330,2.07957079,174.39,174.38,9.0636]
[1754629205434,3.09,174.4,174.39,9.0633]
[1754629205629,5.16957079,174.4,174.39,9.0633]
[1754629205829,5.16957079,174.4,174.39,3.33]
[1754629206031,5.16957079,174.4,174.35,2.07957079]
[1754629206032,3.09,174.39,174.35,3.33]
[1754629206233,5.16957079,174.37,174.35,3.33]
[1754629206631,5.16957079,174.37,174.36,9.064]
[1754629208736,3.09,174.37,174.36,9.064]
[1754629208932,5.16957079,174.37,174.36,9.064]
[1754629209234,3.09,174.36,174.33,3.33]
[1754629209435,2.07957079,174.35,174.33,3.33]
[1754629209835,2.07957079,174.35,174.34,9.0649]
[1754629210337,5.16957079,174.35,174.34,9.0649]
[1754629211637,2.07957079,174.35,174.34,9.0649]
[1754629211836,2.07957079,174.37,174.34,3.33]
[1754629212135,5.16957079,174.37,174.34,3.33]
[1754629212836,5.16957079,174.37,174.36,9.0642]
[1754629213939,3.09,174.37,174.36,9.0642]
[1754629214237,5.16957079,174.37,174.36,5.7342]
[1754629215038,5.16957079,174.37,174.36,9.0642]
[1754629219543,3.09,174.37,174.36,9.0642]
[1754629219743,5.16957079,174.37,174.36,9.0642]
[1754629221045,3.09,174.36,174.3,104.1]
[1754629221245,5.16957079,174.34,174.31,3.33]
[1754629221540,5.16957079,174.36,174.35,5.7345]
[1754629221743,2.07957079,174.36,174.35,9.0645]
[1754629222145,5.16957079,174.36,174.35,9.0645]
[1754629225846,2.07957079,174.36,174.34,9.0648]
[1754629226047,3.09,174.35,174.34,9.0648]
[1754629227047,5.7345,174.35,174.33,5.7351]
[1754629227347,3.09,174.33,174.32,3.33]
[1754629227547,5.16957079,174.33,174.32,3.33]
[1754629227744,5.16957079,174.33,174.31,5.7357]
[1754629227948,5.16957079,174.33,174.26,5.40957079]
[1754629228146,2.07957079,174.31,174.3,5.7362]
[1754629228350,2.07957079,174.31,174.3,9.0662]
[1754629230052,5.16957079,174.31,174.3,9.0662]
[1754629232345,5.16957079,174.31,174.3,5.7362]
[1754629232550,5.16957079,174.31,174.3,9.0862]
[1754629232847,5.29957079,174.31,174.3,9.0862]
[1754629233247,5.29957079,174.31,174.29,3.35]
[1754629233452,5.29957079,174.3,174.29,3.35]
[1754629233653,5.29957079,174.3,174.25,106.17957079]
[1754629233854,3.22,174.29,174.28,3.35]
[1754629234753,3.22,174.31,174.29,3.35]
[1754629234954,5.29957079,174.32,174.3,3.35]
[1754629235654,5.29957079,174.32,174.31,5.7359]
[1754629235853,2.07957079,174.32,174.31,9.0859]
[1754629237752,5.29957079,174.32,174.31,9.0859]
[1754629239256,2.07957079,174.32,174.31,9.0859]
[1754629239763,3.22,174.33,174.32,9.0855]
[1754629239959,2.07957079,174.33,174.32,9.0855]
[1754629240161,5.29957079,174.35,174.32,3.35]
[1754629240457,2.07957079,174.35,174.34,9.0849]
[1754629240764,5.29957079,174.37,174.34,3.35]
[1754629240960,3.22,174.36,174.35,9.0846]
[1754629242164,2.07957079,174.37,174.36,5.7342]
[1754629242366,2.07957079,174.39,174.36,3.35]
[1754629242667,3.22,174.38,174.36,3.35]
[1754629242861,3.22,174.4,174.37,5.7337]
[1754629243061,3.22,174.4,174.37,9.0837]
[1754629243360,8.953,174.4,174.37,9.0837]
[1754629243558,3.22,174.39,174.37,9.0837]
[1754629244265,3.22,174.39,174.38,5.7336]
[1754629245267,3.22,174.39,174.37,9.0838]
[1754629245668,3.22,174.39,174.37,5.7338]
[1754629246967,3.22,174.39,174.37,9.0838]
[1754629248267,3.22,174.39,174.38,3.35]
[1754629248468,3.22,174.39,174.37,5.7338]
[1754629248765,3.22,174.39,174.37,9.0838]
[1754629250872,5.7333,174.39,174.36,9.0841]
[1754629251171,3.22,174.38,174.36,9.0841]
[1754629252874,3.22,174.37,174.35,5.7345]
[1754629253072,3.22,174.37,174.35,9.0845]
[1754629253476,3.22,174.36,174.34,5.7348]
[1754629253674,3.22,174.36,174.34,9.0848]
[1754629254376,5.7343,174.36,174.34,9.0848]
[1754629254577,6.47605394,174.35,174.32,9.0853]
[1754629254779,3.22,174.34,174.32,9.0853]
[1754629255778,3.22,174.34,174.31,5.7358]
[1754629255984,3.22,174.34,174.31,9.0858]
[1754629256381,3.22,174.34,174.31,5.7358]
[1754629256685,3.22,174.33,174.32,3.35]
[1754629258886,3.22,174.33,174.31,9.0856]
[1754629259484,3.22,174.33,174.31,5.7356]
[1754629259687,3.22,174.33,174.31,9.0856]
[1754629260285,3.22,174.33,174.32,9.0855]
[1754629261590,6.47605394,174.33,174.3,3.35]
[1754629261787,3.25605394,174.33,174.3,3.35]
[1754629261986,3.03,174.31,174.3,3.35]
[1754629262287,3.03,174.31,174.25,104.1]
[1754629262288,6.28605394,174.31,174.28,3.25]
[1754629262490,3.03,174.3,174.29,3.25]
[1754629262789,5.115916,174.3,174.29,3.25]
[1754629263492,2.085916,174.3,174.29,3.25]
[1754629264194,2.085916,174.3,174.29,8.9865]
[1754629264593,3.03,174.34,174.29,5.335916]
[1754629264792,2.085916,174.33,174.3,3.25]
[1754629264988,2.085916,174.34,174.31,3.25]
[1754629265286,5.115916,174.32,174.28,3.25]
[1754629265493,3.03,174.3,174.29,5.7363]
[1754629265995,3.03,174.3,174.29,8.9863]
[1754629266690,6.28932817,174.32,174.31,3.25]
[1754629266884,3.03,174.32,174.31,3.25]
[1754629267088,8.7655,174.32,174.31,3.25]
[1754629267389,3.03,174.31,174.3,3.25]
[1754629268493,8.7653,174.33,174.31,3.25]
[1754629268788,3.03,174.33,174.31,3.25]
[1754629268994,3.03,174.33,174.31,5.7357]
[1754629269192,3.03,174.33,174.32,3.25]
[1754629269991,8.99442817,174.34,174.32,3.25]
[1754629270296,3.03,174.35,174.33,3.25]
[1754629270694,3.03,174.34,174.32,5.7353]
[1754629270893,3.03,174.34,174.33,3.25]
[1754629271697,12.02382817,174.36,174.34,3.25]
[1754629271992,6.28932817,174.37,174.34,3.25]
[1754629272188,3.03,174.37,174.34,3.25]
[1754629272398,3.25932817,174.39,174.34,3.25]
[1754629272594,3.03,174.38,174.34,3.25]
[1754629272796,3.03,174.38,174.36,3.25]
[1754629273002,8.7636,174.38,174.36,3.25]
[1754629273903,8.99272817,174.39,174.36,3.25]
[1754629274200,3.03,174.38,174.36,3.25]
[1754629274900,3.03,174.38,174.36,8.984]
[1754629275103,3.03,174.38,174.37,3.25]
[1754629278198,3.03,174.39,174.34,3.25]
[1754629278403,3.03,174.4,174.34,3.25]
[1754629278604,3.03,174.4,174.38,5.7334]
[1754629278804,3.03,174.39,174.38,5.7334]
[1754629279407,3.03,174.39,174.38,3.25]
[1754629280610,3.03,174.38,174.37,3.25]
[1754629280908,3.03,174.38,174.35,5.7344]
[1754629281207,3.03,174.38,174.36,3.25]
[1754629281403,3.03,174.38,174.35,5.7344]
[1754629281607,3.03,174.37,174.35,8.9844]
[1754629282103,3.03,174.36,174.35,3.25]
[1754629284404,3.03,174.36,174.34,5.7347]
[1754629284604,3.03,174.36,174.34,8.9847]
[1754629284809,3.03,174.36,174.34,5.7347]
[1754629285011,3.03,174.36,174.35,3.25]
[1754629285413,3.03,174.36,174.29,3.25932817]
[1754629285611,3.03,174.36,174.34,3.25]
[1754629285809,8.7644,174.36,174.34,3.25]
[1754629286011,3.03,174.35,174.34,3.25]
[1754629291517,3.03,174.35,174.34,8.9849]
[1754629292219,3.03,174.35,174.34,3.25]
[1754629294124,3.03,174.35,174.33,5.7351]
[1754629294330,6.28932817,174.35,174.33,8.8551]
[1754629294725,3.25932817,174.35,174.34,3.12]
[1754629295128,3.25932817,174.35,174.34,8.8549]
[1754629295317,6.54932817,174.35,174.34,8.8549]
[1754629296628,3.29,174.36,174.35,3.12]
[1754629298325,3.29,174.36,174.35,8.8545]
[1754629298627,3.29,174.38,174.32,3.12]
[1754629298834,6.54932817,174.41,174.34,3.12]
[1754629299029,3.29,174.4,174.39,3.12]
[1754629304837,9.0229,174.4,174.37,5.7337]
[1754629305041,3.29,174.38,174.32,3.12]
[1754629305237,3.25932817,174.37,174.32,3.12]
[1754629305543,3.29,174.36,174.34,8.8546]
[1754629305737,3.29,174.36,174.35,3.12]
[1754629306541,3.29,174.36,174.35,8.8545]
[1754629307342,3.29,174.36,174.35,3.12]
[1754629308241,3.29,174.36,174.35,8.8545]
[1754629309638,3.25932817,174.37,174.35,8.8545]
[1754629309844,9.0239,174.37,174.36,3.12]
[1754629313145,3.29,174.37,174.36,3.12]
[1754629313342,3.29,174.37,174.35,5.7345]
[1754629313540,3.29,174.36,174.35,5.7345]
[1754629313945,3.29,174.36,174.35,8.8545]
[1754629314245,5.7337,174.38,174.35,8.8545]
[1754629314441,3.29,174.37,174.36,3.12]
[1754629320652,12.28272817,174.39,174.37,3.12]
[1754629320851,3.29,174.38,174.37,3.12]
[1754629321152,9.0236,174.38,174.37,3.12]
[1754629321353,3.29,174.38,174.37,3.12]
[1754629321656,9.0236,174.38,174.37,3.12]
[1754629321955,8.9136,174.38,174.37,3.12]
[1754629322154,8.9136,174.38,174.35,5.7344]
[1754629322450,3.18,174.37,174.36,3.29]
[1754629323358,3.18,174.37,174.36,9.0242]
[1754629326661,5.26412522,174.37,174.36,3.29]
[1754629327155,5.7321,174.43,174.4,5.7327]
[1754629327355,5.26412522,174.42,174.38,2.08412522]
[1754629327555,5.26412522,174.42,174.39,3.29]
[1754629327757,2.08412522,174.42,174.39,3.29]
[1754629327959,3.18,174.41,174.39,3.29]
[1754629328859,3.18,174.41,174.4,5.7326]
[1754629329061,3.18,174.41,174.33,3.29]
[1754629329266,3.18,174.41,174.35,3.29]
[1754629329562,3.18,174.41,174.39,5.7332]
[1754629329762,3.18,174.41,174.39,9.0232]
[1754629329962,3.18,174.41,174.39,3.29]
[1754629330160,3.18,174.39,174.33,3.29]
[1754629330459,3.25466796,174.38,174.33,3.29]
[1754629330666,3.18,174.37,174.35,3.29]
[1754629331770,3.18,174.37,174.36,3.29]
[1754629337367,8.9139,174.37,174.36,3.29]
[1754629338568,3.18,174.37,174.36,3.29]
[1754629339672,8.9139,174.37,174.36,3.29]
[1754629343878,3.18,174.37,174.36,3.29]
[1754629344780,3.18,174.36,174.34,9.0248]
[1754629345081,3.25466796,174.36,174.34,3.29]
[1754629345278,3.18,174.35,174.34,3.29]
[1754629352087,3.18,174.35,174.28,3.21]
[1754629352287,3.25466796,174.34,174.28,3.21]
[1754629352785,3.25466796,174.42,174.28,3.21]
[1754629352786,3.18,174.31,174.29,3.21]
[1754629353179,3.18,174.31,174.29,8.9465]
[1754629353481,3.18,174.31,174.3,3.21]
[1754629354886,6.43466796,174.34,174.3,3.21]
[1754629355388,6.43466796,174.34,174.3,5.736]
[1754629355590,3.18,174.33,174.31,3.21]
[1754629355790,3.25466796,174.36,174.31,3.21]
[1754629355992,3.25466796,174.36,174.34,3.21]
[1754629356287,6.43466796,174.36,174.34,3.21]
[1754629358391,3.18,174.35,174.34,3.21]
[1754629366795,3.25466796,174.36,174.32,8.9455]
[1754629367094,3.18,174.34,174.33,3.21]
[1754629372796,5.26494877,174.34,174.33,3.21]
[1754629373800,2.08494877,174.34,174.33,3.21]
[1754629374002,5.26494877,174.34,174.33,3.21]
[1754629385710,2.08494877,174.35,174.33,5.7351]
[1754629386013,3.26,174.36,174.34,3.27]
[1754629386608,3.26,174.36,174.34,9.0046]
[1754629386912,3.26,174.36,174.35,3.27]
[1754629388812,5.34494877,174.36,174.35,3.27]
[1754629390214,2.08494877,174.36,174.33,5.735]
[1754629390413,5.34494877,174.35,174.34,3.27]
[1754629391509,2.08494877,174.35,174.33,3.27]
[1754629391708,5.34494877,174.34,174.33,3.27]
[1754629392519,11.07974877,174.34,174.33,3.27]
[1754629392919,5.34494877,174.34,174.33,3.27]
[1754629393420,3.26,174.33,174.3,3.27]